[Event "November 21 Late 2023"]
[Site "https://www.chess.com"]
[Date "2023.11.21"]
[Round "9"]
[White "Le, Quang Liem"]
[Black "Carlsen, Magnus"]
[Result "0-1"]
[Board "1"]
[TimeControl "180+1"]
[WhiteFideId "12401137"]
[BlackFideId "1503014"]
[WhiteElo "2665"]
[BlackElo "2887"]
[WhiteTeam "VIE"]
[BlackTeam "NOR"]
[WhiteClock "0:00:03"]
[BlackClock "0:01:36"]

1. Nf3 {[%clk 0:03:00]}  b6 {[%clk 0:02:52]} 2. g3 {[%clk 0:02:58]}  Bb7 {[%clk 0:02:51]} 3. Bg2 {[%clk 0:02:59]}  g6 {[%clk 0:02:52]} 4. O-O {[%clk 0:02:57]}  Bg7 {[%clk 0:02:51]} 5. d4 {[%clk 0:02:55]}  Nf6 {[%clk 0:02:35]} 6. c4 {[%clk 0:02:51]}  O-O {[%clk 0:02:35]} 7. d5 {[%clk 0:02:41]}  Na6 {[%clk 0:02:33]} 8. Nc3 {[%clk 0:02:41]}  Nc5 {[%clk 0:02:33]} 9. Be3 {[%clk 0:02:28]}  e6 {[%clk 0:02:29]} 10. Bd4 {[%clk 0:02:15]}  exd5 {[%clk 0:02:27]} 11. cxd5 {[%clk 0:02:16]}  Re8 {[%clk 0:02:27]} 12. Nd2 {[%clk 0:02:03]}  a5 {[%clk 0:02:20]} 13. Re1 {[%clk 0:01:45]}  d6 {[%clk 0:02:16]} 14. a4 {[%clk 0:01:27]}  Ba6 {[%clk 0:02:15]} 15. Qc2 {[%clk 0:01:17]}  Nxd5 {[%clk 0:02:07]} 16. Bxc5 {[%clk 0:00:57]}  Nxc3 {[%clk 0:02:06]} 17. bxc3 {[%clk 0:00:53]}  dxc5 {[%clk 0:02:02]} 18. Bxa8 {[%clk 0:00:54]}  Qxa8 {[%clk 0:02:02]} 19. Nf1 {[%clk 0:00:45]}  Qe4 {[%clk 0:01:59]} 20. Qb2 {[%clk 0:00:20]}  Qc4 {[%clk 0:01:53]} 21. Ra3 {[%clk 0:00:18]}  h5 {[%clk 0:01:48]} 22. Ne3 {[%clk 0:00:17]}  Rxe3 {[%clk 0:01:47]} 23. fxe3 {[%clk 0:00:18]}  Qe4 {[%clk 0:01:47]} 24. Rf1 {[%clk 0:00:14]}  Qxe3+ {[%clk 0:01:45]} 25. Rf2 {[%clk 0:00:15]}  Bb7 {[%clk 0:01:45]} 26. Qc2 {[%clk 0:00:11]}  c4 {[%clk 0:01:42]} 27. Qd1 {[%clk 0:00:09]}  Bf8 {[%clk 0:01:38]} 28. Qd8 {[%clk 0:00:07]}  Qc1+ {[%clk 0:01:35]} 29. Rf1 {[%clk 0:00:07]}  Qxa3 {[%clk 0:01:36]} 30. Qxc7 {[%clk 0:00:03]}  Qc5+ {[%clk 0:01:36]} 0-1

[Event "November 21 Late 2023"]
[Site "https://www.chess.com"]
[Date "2023.11.21"]
[Round "9"]
[White "Theodorou, Nikolas"]
[Black "Nihal Sarin"]
[Result "1-0"]
[Board "2"]
[TimeControl "180+1"]
[WhiteFideId "4262875"]
[BlackFideId "25092340"]
[WhiteElo "2525"]
[BlackElo "2689"]
[WhiteTeam "GRE"]
[BlackTeam "IND"]
[WhiteClock "0:00:14"]
[BlackClock "0:00:09"]

1. Nf3 {[%clk 0:02:53]}  d5 {[%clk 0:02:59]} 2. b3 {[%clk 0:02:52]}  Bf5 {[%clk 0:02:59]} 3. Bb2 {[%clk 0:02:52]}  e6 {[%clk 0:02:59]} 4. g3 {[%clk 0:02:53]}  Nf6 {[%clk 0:03:00]} 5. Bg2 {[%clk 0:02:53]}  h6 {[%clk 0:03:01]} 6. O-O {[%clk 0:02:54]}  Be7 {[%clk 0:03:02]} 7. d3 {[%clk 0:02:54]}  O-O {[%clk 0:03:02]} 8. Nc3 {[%clk 0:02:55]}  a5 {[%clk 0:03:02]} 9. e4 {[%clk 0:02:50]}  Bh7 {[%clk 0:02:53]} 10. Qe2 {[%clk 0:02:44]}  c6 {[%clk 0:02:51]} 11. Kh1 {[%clk 0:02:33]}  Na6 {[%clk 0:02:51]} 12. a3 {[%clk 0:02:32]}  b5 {[%clk 0:02:49]} 13. Ne5 {[%clk 0:02:31]}  Qc7 {[%clk 0:02:44]} 14. exd5 {[%clk 0:02:26]}  exd5 {[%clk 0:02:37]} 15. f4 {[%clk 0:01:44]}  Rfe8 {[%clk 0:02:33]} 16. Rae1 {[%clk 0:01:45]}  Nc5 {[%clk 0:02:24]} 17. Nd1 {[%clk 0:01:42]}  Bd6 {[%clk 0:02:13]} 18. Nf2 {[%clk 0:01:40]}  Re7 {[%clk 0:02:03]} 19. Nfg4 {[%clk 0:01:27]}  Nxg4 {[%clk 0:01:28]} 20. Qxg4 {[%clk 0:01:27]}  f6 {[%clk 0:01:29]} 21. Ng6 {[%clk 0:01:01]}  Ree8 {[%clk 0:01:16]} 22. h4 {[%clk 0:00:54]}  Qd7 {[%clk 0:01:13]} 23. f5 {[%clk 0:00:44]}  Rxe1 {[%clk 0:01:11]} 24. Rxe1 {[%clk 0:00:45]}  Re8 {[%clk 0:01:12]} 25. Rxe8+ {[%clk 0:00:35]}  Qxe8 {[%clk 0:01:13]} 26. Kh2 {[%clk 0:00:35]}  Nd7 {[%clk 0:01:03]} 27. h5 {[%clk 0:00:18]}  Qe1 {[%clk 0:00:56]} 28. Qf3 {[%clk 0:00:15]}  Ne5 {[%clk 0:00:39]} 29. Bxe5 {[%clk 0:00:15]}  Bxe5 {[%clk 0:00:09]} 30. Qxd5+ {[%clk 0:00:14]} 1-0

[Event "November 21 Late 2023"]
[Site "https://www.chess.com"]
[Date "2023.11.21"]
[Round "9"]
[White "Bortnyk, Olexandr"]
[Black "Erigaisi Arjun"]
[Result "1/2-1/2"]
[Board "3"]
[TimeControl "180+1"]
[WhiteFideId "14120828"]
[BlackFideId "35009192"]
[WhiteElo "2725"]
[BlackElo "2729"]
[WhiteTeam "UKR"]
[BlackTeam "IND"]
[WhiteClock "0:00:02"]
[BlackClock "0:00:04"]

1. d4 {[%clk 0:03:00]}  e6 {[%clk 0:02:57]} 2. g3 {[%clk 0:03:00]}  c5 {[%clk 0:02:57]} 3. c3 {[%clk 0:02:53]}  Nc6 {[%clk 0:02:55]} 4. Bg2 {[%clk 0:02:53]}  d5 {[%clk 0:02:56]} 5. Nf3 {[%clk 0:02:53]}  Nf6 {[%clk 0:02:56]} 6. O-O {[%clk 0:02:53]}  Be7 {[%clk 0:02:55]} 7. Re1 {[%clk 0:02:46]}  O-O {[%clk 0:02:55]} 8. a3 {[%clk 0:02:42]}  b6 {[%clk 0:02:51]} 9. b4 {[%clk 0:02:38]}  Bb7 {[%clk 0:02:51]} 10. Bf4 {[%clk 0:02:36]}  Rc8 {[%clk 0:02:51]} 11. Nbd2 {[%clk 0:02:30]}  cxd4 {[%clk 0:02:43]} 12. cxd4 {[%clk 0:02:29]}  Ne4 {[%clk 0:02:43]} 13. Qb3 {[%clk 0:02:19]}  g5 {[%clk 0:02:35]} 14. Be3 {[%clk 0:02:12]}  g4 {[%clk 0:02:35]} 15. Ne5 {[%clk 0:02:06]}  Nxd2 {[%clk 0:02:30]} 16. Bxd2 {[%clk 0:02:00]}  Nxd4 {[%clk 0:02:22]} 17. Qb2 {[%clk 0:01:53]}  Nc2 {[%clk 0:01:59]} 18. Nxg4 {[%clk 0:01:48]}  f6 {[%clk 0:01:59]} 19. Bh3 {[%clk 0:01:36]}  Nxa1 {[%clk 0:01:46]} 20. Rxa1 {[%clk 0:01:30]}  Kh8 {[%clk 0:01:34]} 21. Bh6 {[%clk 0:01:21]}  Rg8 {[%clk 0:01:29]} 22. Rd1 {[%clk 0:00:51]}  Rg6 {[%clk 0:01:28]} 23. Bf4 {[%clk 0:00:42]}  h5 {[%clk 0:01:05]} 24. Nh6 {[%clk 0:00:40]}  Qd7 {[%clk 0:00:57]} 25. Qb1 {[%clk 0:00:37]}  Kg7 {[%clk 0:00:54]} 26. Nf5+ {[%clk 0:00:35]}  exf5 {[%clk 0:00:55]} 27. Bxf5 {[%clk 0:00:35]}  Qe8 {[%clk 0:00:55]} 28. e4 {[%clk 0:00:18]}  Rd8 {[%clk 0:00:46]} 29. exd5 {[%clk 0:00:17]}  Bd6 {[%clk 0:00:15]} 30. Re1 {[%clk 0:00:18]}  Be5 {[%clk 0:00:15]} 31. Bxe5 {[%clk 0:00:08]}  fxe5 {[%clk 0:00:16]} 32. f4 {[%clk 0:00:09]}  Rxd5 {[%clk 0:00:15]} 33. Be4 {[%clk 0:00:09]}  Rd7 {[%clk 0:00:11]} 34. Bxg6 {[%clk 0:00:06]}  Qxg6 {[%clk 0:00:12]} 35. Qb2 {[%clk 0:00:06]}  Qf6 {[%clk 0:00:06]} 36. Rxe5 {[%clk 0:00:06]}  Kf7 {[%clk 0:00:06]} 37. Qb3+ {[%clk 0:00:05]}  Kf8 {[%clk 0:00:06]} 38. Qc2 {[%clk 0:00:05]}  Qd6 {[%clk 0:00:05]} 39. Qf5+ {[%clk 0:00:03]}  Rf7 {[%clk 0:00:05]} 40. Qxh5 {[%clk 0:00:04]}  Qd4+ {[%clk 0:00:05]} 41. Kf1 {[%clk 0:00:04]}  Qd3+ {[%clk 0:00:05]} 42. Kf2 {[%clk 0:00:04]}  Qd2+ {[%clk 0:00:05]} 43. Kf1 {[%clk 0:00:02]}  Qg2+ {[%clk 0:00:04]} 44. Ke1 {[%clk 0:00:02]}  Qg1+ {[%clk 0:00:05]} 45. Ke2 {[%clk 0:00:02]}  Ba6+ {[%clk 0:00:06]} 46. b5 {[%clk 0:00:02]}  Qg2+ {[%clk 0:00:04]} 47. Ke1 {[%clk 0:00:03]}  Qg1+ {[%clk 0:00:04]} 48. Ke2 {[%clk 0:00:03]}  Qg2+ {[%clk 0:00:04]} 49. Ke1 {[%clk 0:00:02]}  Qg1+ {[%clk 0:00:04]} 50. Ke2 {[%clk 0:00:02]} 1/2-1/2

[Event "November 21 Late 2023"]
[Site "https://www.chess.com"]
[Date "2023.11.21"]
[Round "9"]
[White "Xiong, Jeffery"]
[Black "Szpar, Milosz"]
[Result "0-1"]
[Board "4"]
[TimeControl "180+1"]
[WhiteFideId "2047640"]
[BlackFideId "1184989"]
[WhiteElo "2726"]
[BlackElo "2446"]
[WhiteTeam "USA"]
[BlackTeam "POL"]
[WhiteClock "0:00:14"]
[BlackClock "0:00:07"]

1. e4 {[%clk 0:03:00]}  e6 {[%clk 0:02:59]} 2. d4 {[%clk 0:03:00]}  d5 {[%clk 0:03:00]} 3. exd5 {[%clk 0:03:00]}  exd5 {[%clk 0:03:00]} 4. Nf3 {[%clk 0:03:01]}  Nf6 {[%clk 0:02:59]} 5. Bd3 {[%clk 0:03:01]}  c5 {[%clk 0:02:59]} 6. O-O {[%clk 0:03:00]}  c4 {[%clk 0:03:00]} 7. Re1+ {[%clk 0:03:01]}  Be7 {[%clk 0:03:00]} 8. Bf1 {[%clk 0:03:02]}  O-O {[%clk 0:03:01]} 9. b3 {[%clk 0:03:02]}  cxb3 {[%clk 0:03:02]} 10. axb3 {[%clk 0:03:03]}  Nc6 {[%clk 0:03:02]} 11. c3 {[%clk 0:03:04]}  Ne4 {[%clk 0:02:54]} 12. Bd3 {[%clk 0:03:03]}  Bf5 {[%clk 0:02:49]} 13. Bb2 {[%clk 0:02:37]}  Bd6 {[%clk 0:02:44]} 14. Bxe4 {[%clk 0:02:27]}  dxe4 {[%clk 0:02:34]} 15. Nfd2 {[%clk 0:02:27]}  Qh4 {[%clk 0:02:31]} 16. Nf1 {[%clk 0:02:27]}  Rfe8 {[%clk 0:02:12]} 17. Nbd2 {[%clk 0:02:26]}  Rad8 {[%clk 0:02:05]} 18. Nc4 {[%clk 0:02:19]}  Bb8 {[%clk 0:02:05]} 19. Nce3 {[%clk 0:02:19]}  Bg6 {[%clk 0:02:01]} 20. Qe2 {[%clk 0:02:16]}  f5 {[%clk 0:01:57]} 21. g3 {[%clk 0:02:10]}  Qh3 {[%clk 0:01:49]} 22. Qb5 {[%clk 0:02:04]}  f4 {[%clk 0:01:38]} 23. gxf4 {[%clk 0:01:10]}  Bxf4 {[%clk 0:01:37]} 24. Ng2 {[%clk 0:01:09]}  Rf8 {[%clk 0:01:22]} 25. Qxb7 {[%clk 0:01:05]}  Bh5 {[%clk 0:01:06]} 26. Rxa7 {[%clk 0:00:54]}  Nxa7 {[%clk 0:01:03]} 27. Qxe4 {[%clk 0:00:55]}  Bf3 {[%clk 0:00:52]} 28. Qe6+ {[%clk 0:00:52]}  Qxe6 {[%clk 0:00:52]} 29. Rxe6 {[%clk 0:00:53]}  Bg5 {[%clk 0:00:31]} 30. h4 {[%clk 0:00:46]}  Bf6 {[%clk 0:00:23]} 31. Re3 {[%clk 0:00:44]}  Bxg2 {[%clk 0:00:21]} 32. Kxg2 {[%clk 0:00:45]}  Bxh4 {[%clk 0:00:21]} 33. Ng3 {[%clk 0:00:43]}  Rde8 {[%clk 0:00:20]} 34. c4 {[%clk 0:00:40]}  Bxg3 {[%clk 0:00:18]} 35. Kxg3 {[%clk 0:00:39]}  Rxe3+ {[%clk 0:00:17]} 36. fxe3 {[%clk 0:00:40]}  Rb8 {[%clk 0:00:17]} 37. d5 {[%clk 0:00:34]}  Rxb3 {[%clk 0:00:18]} 38. Bd4 {[%clk 0:00:34]}  Nc8 {[%clk 0:00:18]} 39. Kf4 {[%clk 0:00:27]}  Kf7 {[%clk 0:00:18]} 40. e4 {[%clk 0:00:22]}  Rb4 {[%clk 0:00:14]} 41. e5 {[%clk 0:00:19]}  Rxc4 {[%clk 0:00:14]} 42. Ke3 {[%clk 0:00:20]}  Rxd4 {[%clk 0:00:11]} 43. Kxd4 {[%clk 0:00:20]}  Ke7 {[%clk 0:00:09]} 44. Kc5 {[%clk 0:00:20]}  h5 {[%clk 0:00:09]} 45. Kc6 {[%clk 0:00:14]}  Kd8 {[%clk 0:00:07]} 0-1

[Event "November 21 Late 2023"]
[Site "https://www.chess.com"]
[Date "2023.11.21"]
[Round "9"]
[White "Bortnyk, Mykola"]
[Black "Nakamura, Hikaru"]
[Result "1-0"]
[Board "5"]
[TimeControl "180+1"]
[WhiteFideId "14120836"]
[BlackFideId "2016192"]
[WhiteElo "2592"]
[BlackElo "2874"]
[WhiteTeam "UKR"]
[BlackTeam "USA"]
[WhiteClock "0:00:12"]
[BlackClock "0:00:07"]

1. e4 {[%clk 0:03:00]}  a6 {[%clk 0:02:56]} 2. d4 {[%clk 0:02:59]}  e6 {[%clk 0:02:53]} 3. Nf3 {[%clk 0:02:57]}  b5 {[%clk 0:02:53]} 4. Bd3 {[%clk 0:02:56]}  c5 {[%clk 0:02:53]} 5. c3 {[%clk 0:02:54]}  Bb7 {[%clk 0:02:53]} 6. O-O {[%clk 0:02:55]}  d6 {[%clk 0:02:53]} 7. Re1 {[%clk 0:02:54]}  Nd7 {[%clk 0:02:53]} 8. a4 {[%clk 0:02:52]}  bxa4 {[%clk 0:02:51]} 9. Qxa4 {[%clk 0:02:51]}  Ne7 {[%clk 0:02:50]} 10. Bg5 {[%clk 0:02:47]}  Qc7 {[%clk 0:02:41]} 11. Nbd2 {[%clk 0:02:44]}  Ng6 {[%clk 0:02:31]} 12. Nc4 {[%clk 0:02:38]}  h6 {[%clk 0:02:24]} 13. Bd2 {[%clk 0:02:30]}  Be7 {[%clk 0:02:23]} 14. Na5 {[%clk 0:02:29]}  Bc8 {[%clk 0:02:12]} 15. e5 {[%clk 0:02:21]}  O-O {[%clk 0:02:09]} 16. Nc6 {[%clk 0:01:51]}  Bb7 {[%clk 0:02:06]} 17. Nxe7+ {[%clk 0:01:49]}  Nxe7 {[%clk 0:02:06]} 18. exd6 {[%clk 0:01:43]}  Qxd6 {[%clk 0:02:06]} 19. Be4 {[%clk 0:01:21]}  Bxe4 {[%clk 0:01:58]} 20. Rxe4 {[%clk 0:01:22]}  Rfd8 {[%clk 0:01:58]} 21. Bf4 {[%clk 0:01:18]}  Qb6 {[%clk 0:01:58]} 22. Re2 {[%clk 0:01:08]}  Nf5 {[%clk 0:01:43]} 23. dxc5 {[%clk 0:00:54]}  Nxc5 {[%clk 0:01:43]} 24. Qc2 {[%clk 0:00:54]}  Nd3 {[%clk 0:01:37]} 25. Bg3 {[%clk 0:00:43]}  Rac8 {[%clk 0:01:31]} 26. Rd2 {[%clk 0:00:31]}  Nc5 {[%clk 0:01:30]} 27. Rad1 {[%clk 0:00:24]}  Rxd2 {[%clk 0:01:29]} 28. Rxd2 {[%clk 0:00:25]}  a5 {[%clk 0:01:29]} 29. Be5 {[%clk 0:00:24]}  Qb7 {[%clk 0:01:25]} 30. h3 {[%clk 0:00:23]}  Ne7 {[%clk 0:01:19]} 31. Qd1 {[%clk 0:00:22]}  Nc6 {[%clk 0:00:39]} 32. Bf4 {[%clk 0:00:18]}  a4 {[%clk 0:00:37]} 33. Ne5 {[%clk 0:00:18]}  Nxe5 {[%clk 0:00:30]} 34. Bxe5 {[%clk 0:00:19]}  f6 {[%clk 0:00:31]} 35. Bf4 {[%clk 0:00:12]}  e5 {[%clk 0:00:31]} 36. Be3 {[%clk 0:00:12]}  Nb3 {[%clk 0:00:18]} 37. Rd7 {[%clk 0:00:12]}  Qe4 {[%clk 0:00:19]} 38. Qh5 {[%clk 0:00:11]}  Qh7 {[%clk 0:00:10]} 39. Qf7+ {[%clk 0:00:11]}  Kh8 {[%clk 0:00:11]} 40. Ra7 {[%clk 0:00:09]}  f5 {[%clk 0:00:06]} 41. Rxa4 {[%clk 0:00:08]}  f4 {[%clk 0:00:07]} 42. Qxb3 {[%clk 0:00:08]}  fxe3 {[%clk 0:00:07]} 43. fxe3 {[%clk 0:00:09]}  Qd3 {[%clk 0:00:07]} 44. Qe6 {[%clk 0:00:07]}  Qxe3+ {[%clk 0:00:08]} 45. Kh2 {[%clk 0:00:07]}  Rb8 {[%clk 0:00:08]} 46. Rg4 {[%clk 0:00:07]}  h5 {[%clk 0:00:04]} 47. Rg3 {[%clk 0:00:06]}  Qf4 {[%clk 0:00:05]} 48. Qg6 {[%clk 0:00:06]}  Qh6 {[%clk 0:00:03]} 49. Qxh6+ {[%clk 0:00:05]}  gxh6 {[%clk 0:00:04]} 50. b4 {[%clk 0:00:06]}  e4 {[%clk 0:00:04]} 51. Re3 {[%clk 0:00:06]}  Rc8 {[%clk 0:00:05]} 52. Kg3 {[%clk 0:00:07]}  Kg7 {[%clk 0:00:06]} 53. Kf4 {[%clk 0:00:07]}  Rc4 {[%clk 0:00:06]} 54. Ke5 {[%clk 0:00:08]}  Kg6 {[%clk 0:00:07]} 55. Kd5 {[%clk 0:00:08]}  Rc8 {[%clk 0:00:08]} 56. Kxe4 {[%clk 0:00:09]}  Kg5 {[%clk 0:00:08]} 57. Kd3 {[%clk 0:00:08]}  Kf4 {[%clk 0:00:08]} 58. g3+ {[%clk 0:00:09]}  Kf5 {[%clk 0:00:09]} 59. c4 {[%clk 0:00:09]}  h4 {[%clk 0:00:09]} 60. gxh4 {[%clk 0:00:10]}  Ra8 {[%clk 0:00:10]} 61. Kd4 {[%clk 0:00:10]}  Kf4 {[%clk 0:00:10]} 62. Rb3 {[%clk 0:00:10]}  Rd8+ {[%clk 0:00:09]} 63. Kc5 {[%clk 0:00:10]}  Rc8+ {[%clk 0:00:10]} 64. Kd5 {[%clk 0:00:11]}  Rd8+ {[%clk 0:00:07]} 65. Ke6 {[%clk 0:00:12]} 1-0

[Event "November 21 Late 2023"]
[Site "https://www.chess.com"]
[Date "2023.11.21"]
[Round "9"]
[White "Rustemov, Alexander"]
[Black "Muradli, Mahammad"]
[Result "1-0"]
[Board "8"]
[TimeControl "180+1"]
[WhiteFideId "4119002"]
[BlackFideId "13409301"]
[WhiteElo "2865"]
[BlackElo "2551"]
[WhiteTeam "RUS"]
[BlackTeam "AZE"]
[WhiteClock "0:00:14"]
[BlackClock "0:00:00"]

1. d4 {[%clk 0:03:00]}  Nf6 {[%clk 0:02:56]} 2. Nf3 {[%clk 0:03:00]}  g6 {[%clk 0:02:57]} 3. c4 {[%clk 0:03:01]}  Bg7 {[%clk 0:02:57]} 4. g3 {[%clk 0:03:01]}  c5 {[%clk 0:02:57]} 5. Bg2 {[%clk 0:03:01]}  O-O {[%clk 0:02:55]} 6. O-O {[%clk 0:03:01]}  Nc6 {[%clk 0:02:56]} 7. Nc3 {[%clk 0:03:00]}  d6 {[%clk 0:02:53]} 8. dxc5 {[%clk 0:02:59]}  dxc5 {[%clk 0:02:53]} 9. Bf4 {[%clk 0:02:59]}  Bd7 {[%clk 0:02:53]} 10. Ne5 {[%clk 0:02:58]}  Nxe5 {[%clk 0:02:51]} 11. Bxe5 {[%clk 0:02:57]}  Qc8 {[%clk 0:02:52]} 12. Qb3 {[%clk 0:02:50]}  Bc6 {[%clk 0:02:52]} 13. Rfd1 {[%clk 0:02:41]}  Bxg2 {[%clk 0:02:40]} 14. Kxg2 {[%clk 0:02:42]}  Qc6+ {[%clk 0:02:32]} 15. Kg1 {[%clk 0:02:41]}  Rfd8 {[%clk 0:02:28]} 16. Qb5 {[%clk 0:02:39]}  Qe6 {[%clk 0:01:50]} 17. Bf4 {[%clk 0:02:02]}  b6 {[%clk 0:01:46]} 18. Qa6 {[%clk 0:01:49]}  Qh3 {[%clk 0:01:43]} 19. Qb7 {[%clk 0:01:42]}  Ng4 {[%clk 0:01:41]} 20. Qg2 {[%clk 0:01:41]}  Qxg2+ {[%clk 0:01:40]} 21. Kxg2 {[%clk 0:01:42]}  Bxc3 {[%clk 0:01:41]} 22. bxc3 {[%clk 0:01:41]}  Nf6 {[%clk 0:01:28]} 23. Bg5 {[%clk 0:01:41]}  Ne4 {[%clk 0:01:25]} 24. Bxe7 {[%clk 0:01:37]}  Rxd1 {[%clk 0:00:58]} 25. Rxd1 {[%clk 0:01:38]}  Nxc3 {[%clk 0:00:59]} 26. Rd2 {[%clk 0:01:35]}  f5 {[%clk 0:00:42]} 27. Rd7 {[%clk 0:01:25]}  Nxa2 {[%clk 0:00:20]} 28. Bf6 {[%clk 0:01:23]}  a5 {[%clk 0:00:16]} 29. Rg7+ {[%clk 0:01:22]}  Kf8 {[%clk 0:00:16]} 30. Rxh7 {[%clk 0:01:23]}  Ra6 {[%clk 0:00:17]} 31. Kf3 {[%clk 0:01:05]}  a4 {[%clk 0:00:17]} 32. Kf4 {[%clk 0:01:05]}  Nb4 {[%clk 0:00:09]} 33. Kg5 {[%clk 0:01:06]}  a3 {[%clk 0:00:03]} 34. Kxg6 {[%clk 0:01:05]}  Ke8 {[%clk 0:00:04]} 35. Re7+ {[%clk 0:00:58]}  Kd8 {[%clk 0:00:03]} 36. Ra7+ {[%clk 0:00:57]}  Ke8 {[%clk 0:00:02]} 37. Rxa6 {[%clk 0:00:57]}  Nxa6 {[%clk 0:00:03]} 38. h4 {[%clk 0:00:56]}  Nc7 {[%clk 0:00:01]} 39. h5 {[%clk 0:00:55]}  Ne6 {[%clk 0:00:02]} 40. h6 {[%clk 0:00:50]}  Nf8+ {[%clk 0:00:02]} 41. Kg7 {[%clk 0:00:46]}  Ne6+ {[%clk 0:00:02]} 42. Kg8 {[%clk 0:00:44]}  Nd4 {[%clk 0:00:03]} 43. h7 {[%clk 0:00:39]}  a2 {[%clk 0:00:03]} 44. h8=Q {[%clk 0:00:34]}  a1=Q {[%clk 0:00:03]} 45. Kg7+ {[%clk 0:00:34]}  Kd7 {[%clk 0:00:03]} 46. Qd8+ {[%clk 0:00:34]}  Kc6 {[%clk 0:00:03]} 47. Qc8+ {[%clk 0:00:27]}  Kd6 {[%clk 0:00:03]} 48. Qd8+ {[%clk 0:00:21]}  Kc6 {[%clk 0:00:04]} 49. Qd5+ {[%clk 0:00:21]}  Kc7 {[%clk 0:00:05]} 50. Be5+ {[%clk 0:00:22]}  Kc8 {[%clk 0:00:05]} 51. Kg6 {[%clk 0:00:21]}  Qb2 {[%clk 0:00:02]} 52. Bxd4 {[%clk 0:00:20]}  cxd4 {[%clk 0:00:03]} 53. Qe6+ {[%clk 0:00:19]}  Kb7 {[%clk 0:00:04]} 54. Kxf5 {[%clk 0:00:20]}  Ka6 {[%clk 0:00:03]} 55. Qe4 {[%clk 0:00:19]}  Qc3 {[%clk 0:00:02]} 56. Qd3 {[%clk 0:00:19]}  Qa5+ {[%clk 0:00:02]} 57. Kf4 {[%clk 0:00:19]}  Qc5 {[%clk 0:00:02]} 58. g4 {[%clk 0:00:18]}  Qd6+ {[%clk 0:00:01]} 59. Kf3 {[%clk 0:00:18]}  Qf8+ {[%clk 0:00:01]} 60. Kg3 {[%clk 0:00:19]}  Qd6+ {[%clk 0:00:02]} 61. f4 {[%clk 0:00:19]}  Ka5 {[%clk 0:00:03]} 62. g5 {[%clk 0:00:17]}  Kb4 {[%clk 0:00:02]} 63. g6 {[%clk 0:00:17]}  Kc5 {[%clk 0:00:02]} 64. Kg4 {[%clk 0:00:17]}  Qe6+ {[%clk 0:00:02]} 65. f5 {[%clk 0:00:18]}  Qe5 {[%clk 0:00:02]} 66. Qf3 {[%clk 0:00:13]}  Kxc4 {[%clk 0:00:01]} 67. Qc6+ {[%clk 0:00:13]}  Kb3 {[%clk 0:00:01]} 68. Qe6+ {[%clk 0:00:13]}  Qxe6 {[%clk 0:00:00]} 69. fxe6 {[%clk 0:00:14]} 1-0

[Event "November 21 Late 2023"]
[Site "https://www.chess.com"]
[Date "2023.11.21"]
[Round "9"]
[White "Vasquez Schroeder, Rodrigo"]
[Black "Matlakov, Maxim"]
[Result "0-1"]
[Board "11"]
[TimeControl "180+1"]
[WhiteFideId "3400042"]
[BlackFideId "4168003"]
[WhiteElo "2582"]
[BlackElo "2638"]
[WhiteTeam "CHI"]
[BlackTeam "RUS"]
[WhiteClock "0:00:04"]
[BlackClock "0:00:05"]

1. e4 {[%clk 0:03:00]}  c5 {[%clk 0:02:58]} 2. Nf3 {[%clk 0:02:58]}  e6 {[%clk 0:02:58]} 3. d4 {[%clk 0:02:58]}  cxd4 {[%clk 0:02:59]} 4. Nxd4 {[%clk 0:02:59]}  Nc6 {[%clk 0:02:59]} 5. Nb5 {[%clk 0:02:58]}  d6 {[%clk 0:02:58]} 6. c4 {[%clk 0:02:57]}  Nf6 {[%clk 0:02:58]} 7. N1c3 {[%clk 0:02:56]}  a6 {[%clk 0:02:58]} 8. Na3 {[%clk 0:02:56]}  Be7 {[%clk 0:02:57]} 9. Be2 {[%clk 0:02:57]}  O-O {[%clk 0:02:57]} 10. O-O {[%clk 0:02:57]}  b6 {[%clk 0:02:57]} 11. Be3 {[%clk 0:02:57]}  Bb7 {[%clk 0:02:57]} 12. Rc1 {[%clk 0:02:58]}  Ne5 {[%clk 0:02:56]} 13. f3 {[%clk 0:02:56]}  Rc8 {[%clk 0:02:56]} 14. Qd2 {[%clk 0:02:53]}  Qc7 {[%clk 0:02:56]} 15. Rfd1 {[%clk 0:02:52]}  Kh8 {[%clk 0:02:56]} 16. Kh1 {[%clk 0:02:52]}  h6 {[%clk 0:02:53]} 17. Bf1 {[%clk 0:02:46]}  g5 {[%clk 0:02:44]} 18. Na4 {[%clk 0:02:27]}  Nfd7 {[%clk 0:02:38]} 19. Qf2 {[%clk 0:02:26]}  Nc5 {[%clk 0:02:37]} 20. Nc3 {[%clk 0:02:24]}  Rg8 {[%clk 0:02:32]} 21. b4 {[%clk 0:02:22]}  Ncd7 {[%clk 0:02:32]} 22. Na4 {[%clk 0:02:16]}  g4 {[%clk 0:02:28]} 23. Nxb6 {[%clk 0:02:12]}  gxf3 {[%clk 0:02:27]} 24. Nxc8 {[%clk 0:02:09]}  Bxe4 {[%clk 0:02:20]} 25. g3 {[%clk 0:01:50]}  Qxc8 {[%clk 0:02:13]} 26. h3 {[%clk 0:01:42]}  Nf6 {[%clk 0:02:02]} 27. Bd4 {[%clk 0:01:37]}  Qb8 {[%clk 0:01:14]} 28. b5 {[%clk 0:01:28]}  Bf5 {[%clk 0:01:00]} 29. g4 {[%clk 0:01:21]}  Ne4 {[%clk 0:00:56]} 30. Qxf3 {[%clk 0:01:17]}  Bf6 {[%clk 0:00:51]} 31. Qb3 {[%clk 0:00:58]}  Qa8 {[%clk 0:00:46]} 32. Bg2 {[%clk 0:00:57]}  Bxg4 {[%clk 0:00:40]} 33. Re1 {[%clk 0:00:50]}  Bf5 {[%clk 0:00:35]} 34. Qe3 {[%clk 0:00:38]}  Bg5 {[%clk 0:00:18]} 35. Bxe5+ {[%clk 0:00:25]}  dxe5 {[%clk 0:00:18]} 36. Bxe4 {[%clk 0:00:19]}  Bxe3 {[%clk 0:00:18]} 37. Bxa8 {[%clk 0:00:19]}  Bxc1 {[%clk 0:00:18]} 38. Rxc1 {[%clk 0:00:18]}  Rxa8 {[%clk 0:00:17]} 39. b6 {[%clk 0:00:18]}  Rg8 {[%clk 0:00:15]} 40. Kh2 {[%clk 0:00:16]}  Be4 {[%clk 0:00:14]} 41. Rg1 {[%clk 0:00:16]}  Rd8 {[%clk 0:00:13]} 42. Kg3 {[%clk 0:00:13]}  f5 {[%clk 0:00:13]} 43. Kf2 {[%clk 0:00:11]}  Rd2+ {[%clk 0:00:12]} 44. Ke1 {[%clk 0:00:12]}  Rxa2 {[%clk 0:00:12]} 45. Rg6 {[%clk 0:00:11]}  Rxa3 {[%clk 0:00:12]} 46. Rxh6+ {[%clk 0:00:11]}  Kg7 {[%clk 0:00:11]} 47. Rxe6 {[%clk 0:00:12]}  Rc3 {[%clk 0:00:07]} 48. b7 {[%clk 0:00:10]}  Rb3 {[%clk 0:00:06]} 49. Re7+ {[%clk 0:00:04]}  Kf6 {[%clk 0:00:05]} 0-1